fUSD/lending_fUSD_20250101
["ID","MTS","AMOUNT","RATE_DAILY","PERIOD"]
[347360440,1735731060319,-646.66,0.00011506,2]
[347360441,1735731060328,-1098.92,0.00011506,2]
[347360442,1735731060337,-191.19226379,0.00011506,2]
[347360443,1735731060347,-500.0,0.00011506,2]
[347360444,1735731060356,-500.0,0.00011506,2]
[347360445,1735731060366,-500.0,0.00011506,2]
[347360446,1735731060376,-500.0,0.00011506,2]
[347360447,1735731060385,-724.02,0.00011506,2]
[347360448,1735731060394,-940.13,0.00011506,2]
[347360449,1735731060403,-500.0,0.00011506,2]
[347360450,1735731060412,-500.0,0.00011506,2]
[347360451,1735731060422,-500.0,0.00011506,2]
[347360452,1735731060431,-500.0,0.00011506,2]
[347360453,1735731060440,-500.0,0.00011506,2]
[347360454,1735731060449,-500.0,0.00011506,2]
[347360455,1735731060458,-1364.84,0.00011506,2]
[347360456,1735731060468,-500.0,0.00011506,2]
[347360457,1735731060478,-838.42,0.00011506,2]
[347360458,1735731060487,-500.0,0.00011506,2]
[347360459,1735731060496,-500.0,0.00011506,2]
[347360460,1735731060506,-500.0,0.00011506,2]
[347360461,1735731060515,-2502.41,0.00011506,2]
[347360462,1735731060525,-500.0,0.00011506,2]
[347360463,1735731060534,-500.0,0.00011506,2]
[347360464,1735731060543,-1505.4,0.00011506,2]
[347360465,1735731060552,-500.0,0.00011506,2]
[347360466,1735731060561,-552.48,0.00011506,2]
[347360467,1735731060571,-500.0,0.00011506,2]
[347360468,1735731060579,-822.64,0.00011506,2]
[347360469,1735731060589,-500.0,0.00011506,2]
[347360470,1735731060598,-500.0,0.00011506,2]
[347360471,1735731060608,-830.19,0.00011506,2]
[347360472,1735731060618,-500.0,0.00011506,2]
[347360473,1735731060630,-952.55,0.00011506,2]
[347360474,1735731060639,-500.0,0.00011506,2]
[347360475,1735731060648,-500.0,0.00011506,2]
[347360476,1735731060657,-548.78,0.00011506,2]
[347360477,1735731060667,-500.0,0.00011506,2]
[347360478,1735731060676,-1528.96,0.00011506,2]
[347360479,1735731060685,-500.0,0.00011506,2]
[347360480,1735731060694,-500.0,0.00011506,2]
[347360481,1735731060703,-500.0,0.00011506,2]
[347360482,1735731060713,-569.09,0.00011506,2]
[347360483,1735731060722,-1366.88,0.00011506,2]
[347360484,1735731060731,-706.54,0.00011506,2]
[347360485,1735731060741,-500.0,0.00011506,2]
[347360486,1735731060750,-458.31105258,0.00011506,2]
[347360487,1735731060760,-1706.24,0.00011506,2]
[347360488,1735731060769,-334.54494332,0.00011506,2]
[347360489,1735731060779,-500.09,0.00011506,2]
[347360490,1735731060788,-500.0,0.00011506,2]
[347360491,1735731060798,-500.0,0.00011506,2]
[347360492,1735731060807,-577.15,0.00011506,2]
[347360493,1735731060816,-1029.07,0.00011506,2]
[347360494,1735731060826,-212.71870027,0.00011506,2]
[347360495,1735731060835,-500.0,0.00011506,2]
[347360496,1735731060844,-500.0,0.00011506,2]
[347360497,1735731060854,-500.0,0.00011506,2]
[347360498,1735731060863,-1073.45,0.00011506,2]
[347360499,1735731060873,-896.99,0.00011506,2]
[347360500,1735731060882,-917.12,0.00011506,2]
[347360501,1735731060891,-854.94,0.00011506,2]
[347360502,1735731060901,-500.0,0.00011506,2]
[347360503,1735731060910,-500.0,0.00011506,2]
[347360504,1735731060919,-500.0,0.00011506,2]
[347360505,1735731060928,-500.0,0.00011506,2]
[347360506,1735731060937,-793.39,0.00011506,2]
[347360507,1735731060946,-535.2,0.00011506,2]
[347360508,1735731060955,-785.35,0.00011506,2]
[347360509,1735731060965,-500.0,0.00011506,2]
[347360510,1735731060975,-500.0,0.00011506,2]
[347360511,1735731060984,-821.28,0.00011506,2]
[347360512,1735731060993,-500.0,0.00011506,2]
[347360513,1735731061003,-761.67,0.00011506,2]
[347360514,1735731061013,-500.0,0.00011506,2]
[347360515,1735731061022,-604.05,0.00011506,2]
[347360516,1735731061032,-1392.88,0.00011506,2]
[347360517,1735731061041,-1142.57,0.00011506,2]
[347360518,1735731061051,-500.0,0.00011506,2]
[347360519,1735731061059,-1135.49,0.00011506,2]
[347360520,1735731061069,-778.24,0.00011506,2]
[347360521,1735731061078,-552.51,0.00011506,2]
[347360522,1735731061087,-3959.23,0.00011506,2]
[347360523,1735731061097,-1570.49,0.00011506,2]
[347360524,1735731061106,-500.0,0.00011506,2]
[347360525,1735731061115,-500.0,0.00011506,2]
[347360526,1735731061126,-500.0,0.00011506,2]
[347360527,1735731061135,-675.98,0.00011506,2]
[347360528,1735731061144,-4104.17,0.00011506,2]
[347360529,1735731061153,-500.0,0.00011506,2]
[347360530,1735731061162,-1543.82,0.00011506,2]
[347360531,1735731061171,-500.0,0.00011506,2]
[347360532,1735731061181,-451.87821035,0.00011506,2]
[347360533,1735731061190,-504.8,0.00011506,2]
[347360534,1735731061199,-500.0,0.00011506,2]
[347360535,1735731061208,-774.27,0.00011506,2]
[347360536,1735731061217,-371.56838727,0.00011506,2]
[347360537,1735731061226,-500.0,0.00011506,2]
[347360538,1735731061235,-500.0,0.00011506,2]
[347360539,1735731061244,-500.0,0.00011506,2]
[347360540,1735731061253,-1199.47,0.00011506,2]
[347360541,1735731061262,-500.0,0.00011506,2]
[347360542,1735731061271,-500.0,0.00011506,2]
[347360543,1735731061281,-1226.33,0.00011506,2]
[347360544,1735731061290,-1855.68,0.00011506,2]
[347360545,1735731061299,-500.0,0.00011506,2]
[347360546,1735731061309,-870.04,0.00011506,2]
[347360547,1735731061319,-1532.89,0.00011506,2]
[347360548,1735731061328,-895.84,0.00011506,2]
[347360549,1735731061337,-500.0,0.00011506,2]
[347360550,1735731061347,-500.0,0.00011506,2]
[347360551,1735731061356,-707.36,0.00011506,2]
[347360552,1735731061366,-2327.89,0.00011506,2]
[347360553,1735731061376,-619.57,0.00011506,2]
[347360554,1735731061385,-1441.28,0.00011506,2]
[347360555,1735731061395,-1006.46,0.00011506,2]
[347360556,1735731061403,-500.0,0.00011506,2]
[347360557,1735731061412,-500.0,0.00011506,2]
[347360558,1735731061421,-500.0,0.00011506,2]
[347360559,1735731061430,-2370.91,0.00011506,2]
[347360560,1735731061439,-500.0,0.00011506,2]
[347360561,1735731061449,-1051.11,0.00011506,2]
[347360562,1735731061457,-500.0,0.00011506,2]
[347360563,1735731061467,-588.87,0.00011506,2]
[347360564,1735731061476,-500.0,0.00011506,2]
[347360565,1735731061485,-593.41,0.00011506,2]
[347360566,1735731061494,-1180.86,0.00011506,2]
[347360567,1735731061503,-1496.47,0.00011506,2]
[347360568,1735731061512,-856.36,0.00011506,2]
[347360569,1735731061521,-505.87,0.00011506,2]
[347360570,1735731061530,-1431.19,0.00011506,2]
[347360571,1735731061539,-584.96,0.00011506,2]
[347360572,1735731061547,-500.0,0.00011506,2]
[347360573,1735731061557,-500.0,0.00011506,2]
[347360574,1735731061569,-867.45,0.00011506,2]
[347360575,1735731061578,-1672.78,0.00011506,2]
[347360576,1735731061588,-500.0,0.00011506,2]
[347360577,1735731061597,-647.66,0.00011506,2]
[347360578,1735731061608,-542.83,0.00011506,2]
[347360579,1735731061619,-720.18,0.00011506,2]
[347360580,1735731061628,-500.0,0.00011506,2]
[347360581,1735731061637,-500.0,0.00011506,2]
[347360582,1735731061649,-500.0,0.00011506,2]
[347360583,1735731061659,-2509.78,0.00011506,2]
[347360584,1735731061670,-500.0,0.00011506,2]
[347360585,1735731061680,-500.0,0.00011506,2]
[347360586,1735731061695,-1092.59,0.00011506,2]
[347360587,1735731061705,-1580.01,0.00011506,2]
[347360588,1735731061714,-500.0,0.00011506,2]
[347360589,1735731061723,-795.66,0.00011506,2]
[347360590,1735731061732,-2576.17,0.00011506,2]
[347360591,1735731061743,-957.22,0.00011506,2]
[347360592,1735731061752,-645.96,0.00011506,2]
[347360593,1735731061763,-649.85,0.00011506,2]
[347360594,1735731061773,-500.0,0.00011506,2]
[347360595,1735731061783,-500.0,0.00011506,2]
[347360596,1735731061792,-3937.93,0.00011506,2]
[347360597,1735731061801,-500.0,0.00011506,2]
[347360598,1735731061810,-2028.68,0.00011506,2]
[347360599,1735731061820,-1848.57,0.00011506,2]
[347360600,1735731061829,-1124.57,0.00011506,2]
[347360601,1735731061838,-500.0,0.00011506,2]
[347360602,1735731061847,-500.0,0.00011506,2]
[347360603,1735731061857,-364.44866892,0.00011506,2]
[347360604,1735731061866,-1584.16,0.00011506,2]
[347360605,1735731061875,-500.0,0.00011506,2]
[347360606,1735731061884,-659.79,0.00011506,2]
[347360607,1735731061894,-500.0,0.00011506,2]
[347360608,1735731061903,-986.37,0.00011506,2]
[347360609,1735731061912,-302.5504773,0.00011506,2]
[347360610,1735731061921,-2744.68,0.00011506,2]
[347360611,1735731061930,-500.0,0.00011506,2]
[347360612,1735731061940,-1099.1,0.00011506,2]
[347360613,1735731061949,-679.11,0.00011506,2]
[347360614,1735731061958,-1815.73,0.00011506,2]
[347360615,1735731061967,-412.5034086,0.00011506,2]
[347360616,1735731061976,-780.83,0.00011506,2]
[347360617,1735731061985,-4406.77,0.00011506,2]
[347360618,1735731061994,-2565.52,0.00011506,2]
[347360619,1735731062003,-500.0,0.00011506,2]
[347360620,1735731062012,-614.69,0.00011506,2]
[347360621,1735731062021,-500.0,0.00011506,2]
[347360622,1735731062030,-500.0,0.00011506,2]
[347360623,1735731062039,-500.0,0.00011506,2]
[347360624,1735731062048,-2065.58,0.00011506,2]
[347360625,1735731062057,-523.45,0.00011506,2]
[347360626,1735731062066,-500.0,0.00011506,2]
[347360627,1735731062075,-910.51,0.00011506,2]
[347360628,1735731062085,-500.0,0.00011506,2]
[347360629,1735731062094,-685.23,0.00011506,2]
[347360630,1735731062103,-500.0,0.00011506,2]
[347360631,1735731062112,-847.97,0.00011506,2]
[347360632,1735731062121,-1423.33,0.00011506,2]
[347360633,1735731062130,-751.25,0.00011506,2]
[347360634,1735731062139,-926.68,0.00011506,2]
[347360635,1735731062148,-926.87,0.00011506,2]
[347360636,1735731062157,-2017.92,0.00011506,2]
[347360637,1735731062167,-500.0,0.00011506,2]
[347360638,1735731062176,-632.88,0.00011506,2]
[347360639,1735731062185,-1444.17,0.00011506,2]
[347360640,1735731062194,-500.0,0.00011506,2]
[347360641,1735731062203,-1792.77,0.00011506,2]
[347360642,1735731062213,-1197.38,0.00011506,2]
[347360643,1735731062222,-500.0,0.00011506,2]
[347360644,1735731062233,-2556.65,0.00011506,2]
[347360645,1735731062253,-500.0,0.00011506,2]
[347360646,1735731062271,-464.94216254,0.00011506,2]
[347360647,1735731062281,-772.37,0.00011506,2]
[347360648,1735731062290,-942.63,0.00011506,2]
[347360649,1735731062299,-500.0,0.00011506,2]
[347360650,1735731062309,-1008.08,0.00011506,2]
[347360651,1735731062319,-617.39,0.00011506,2]
[347360652,1735731062329,-513.09,0.00011506,2]
[347360653,1735731062346,-2846.91,0.00011506,2]
[347360654,1735731062356,-1244.61,0.00011506,2]
[347360655,1735731062365,-1208.75,0.00011506,2]
[347360656,1735731062375,-500.0,0.00011506,2]
[347360657,1735731062384,-757.03,0.00011506,2]
[347360658,1735731062394,-561.33,0.00011506,2]
[347360659,1735731062404,-827.37,0.00011506,2]
[347360660,1735731062413,-500.0,0.00011506,2]
[347360661,1735731062423,-500.0,0.00011506,2]
[347360662,1735731062432,-661.67,0.00011506,2]
[347360663,1735731062441,-500.0,0.00011506,2]
[347360664,1735731062450,-841.32,0.00011506,2]
[347360665,1735731062459,-847.19,0.00011506,2]
[347360666,1735731062468,-500.0,0.00011506,2]
[347360667,1735731062477,-618.0,0.00011506,2]
[347360668,1735731062486,-500.0,0.00011506,2]
[347360669,1735731062496,-500.0,0.00011506,2]
[347360670,1735731062507,-1706.09,0.00011506,2]
[347360671,1735731062517,-710.17,0.00011506,2]
[347360672,1735731062528,-500.0,0.00011506,2]
[347360673,1735731062538,-1623.45,0.00011506,2]
[347360674,1735731062548,-600.85,0.00011506,2]
[347360675,1735731062557,-627.23,0.00011506,2]
[347360676,1735731062569,-578.83,0.00011506,2]
[347360677,1735731062579,-587.39,0.00011506,2]
[347360678,1735731062588,-1813.19,0.00011506,2]
[347360679,1735731062598,-3201.33,0.00011506,2]
[347360680,1735731062609,-1737.02,0.00011506,2]
[347360681,1735731062619,-1068.15,0.00011506,2]
[347360682,1735731062631,-775.76,0.00011506,2]
[347360683,1735731062640,-500.0,0.00011506,2]
[347360684,1735731062649,-727.98,0.00011506,2]
[347360685,1735731062659,-782.0,0.00011506,2]
[347360686,1735731062668,-500.0,0.00011506,2]
[347360687,1735731062677,-500.0,0.00011506,2]
[347360688,1735731062687,-679.71,0.00011506,2]
[347360689,1735731062696,-500.0,0.00011506,2]
[347360690,1735731062705,-718.11,0.00011506,2]
[347360691,1735731062715,-2322.42,0.00011506,2]
[347360692,1735731062724,-158.54490456,0.00011506,2]
[347360693,1735731062733,-2097.38,0.00011506,2]
[347360694,1735731062742,-500.0,0.00011506,2]
[347360695,1735731062754,-500.0,0.00011506,2]
[347360696,1735731062764,-500.0,0.00011506,2]
[347360697,1735731062775,-777.94,0.00011506,2]
[347360698,1735731062783,-2865.39,0.00011506,2]
[347360699,1735731062795,-500.0,0.00011506,2]
[347360700,1735731062804,-500.0,0.00011506,2]
[347360701,1735731062814,-500.0,0.00011506,2]
[347360702,1735731062824,-541.28,0.00011506,2]
[347360703,1735731062834,-830.43,0.00011506,2]
[347360704,1735731062843,-1608.14,0.00011506,2]
[347360705,1735731062852,-500.0,0.00011506,2]
[347360706,1735731062862,-2792.26,0.00011506,2]
[347360707,1735731062872,-607.9,0.00011506,2]
[347360708,1735731062882,-2616.08,0.00011506,2]
[347360709,1735731062892,-2238.78,0.00011506,2]
[347360710,1735731062901,-500.0,0.00011506,2]
[347360711,1735731062910,-500.0,0.00011506,2]
[347360712,1735731062919,-500.0,0.00011506,2]
[347360713,1735731062928,-500.0,0.00011506,2]
[347360714,1735731062937,-1793.73,0.00011506,2]
[347360715,1735731062947,-21756.4,0.00011506,2]
[347360716,1735731062957,-500.0,0.00011506,2]
[347360717,1735731062966,-1541.74,0.00011506,2]
[347360718,1735731062975,-594.91,0.00011506,2]
[347360719,1735731062984,-500.0,0.00011506,2]
[347360720,1735731062994,-696.23,0.00011506,2]
[347360721,1735731063003,-562.06,0.00011506,2]
[347360722,1735731063013,-1003.8,0.00011506,2]
[347360723,1735731063022,-1762.83,0.00011506,2]
[347360724,1735731063032,-500.0,0.00011506,2]
[347360725,1735731063042,-615.0,0.00011506,2]
[347360726,1735731063051,-1616.4,0.00011506,2]
[347360727,1735731063060,-876.84,0.00011506,2]
[347360728,1735731063070,-500.0,0.00011506,2]
[347360729,1735731063079,-500.0,0.00011506,2]
[347360730,1735731063089,-1691.63,0.00011506,2]
[347360731,1735731063098,-1133.94,0.00011506,2]
[347360732,1735731063108,-3827.89,0.00011506,2]
[347360733,1735731063117,-249.037796,0.00011506,2]
[347360734,1735731063127,-2786.98,0.00011506,2]
[347360735,1735731063137,-3120.49,0.00011506,2]
[347360736,1735731063146,-500.0,0.00011506,2]
[347360737,1735731063156,-542.76,0.00011506,2]
[347360738,1735731063165,-1020.34,0.00011506,2]
[347360739,1735731063175,-500.0,0.00011506,7]
[347360740,1735731063185,-2158.86,0.00011506,2]
[347360741,1735731063195,-1094.24,0.00011506,2]
[347360742,1735731063205,-2812.2,0.00011506,2]
[347360743,1735731063215,-500.0,0.00011506,2]
[347360744,1735731063225,-500.0,0.00011506,2]
[347360745,1735731063235,-500.0,0.00011506,2]
[347360746,1735731063244,-500.0,0.00011506,2]
[347360747,1735731063254,-1381.28,0.00011506,2]
[347360748,1735731063263,-500.0,0.00011506,2]
[347360749,1735731063274,-523.35398907,0.00011506,2]
[347360750,1735731063515,-500.0,0.00011506,2]
[347360751,1735731063526,-500.0,0.00011506,2]
[347360752,1735731063536,-2015.68,0.00011506,2]
[347360753,1735731063545,-500.0,0.00011506,2]
[347360754,1735731063554,-803.03,0.00011506,2]
[347360755,1735731063563,-1444.0,0.00011506,2]
[347360756,1735731063573,-682.61,0.00011506,2]
[347360757,1735731063583,-500.0,0.00011506,2]
[347360758,1735731063592,-1326.65,0.00011506,2]
[347360759,1735731063602,-1061.08,0.00011506,2]
[347360760,1735731063615,-500.0,0.00011506,2]
[347360761,1735731063626,-500.0,0.00011506,2]
[347360762,1735731063635,-500.0,0.00011506,2]
[347360763,1735731063645,-2155.27,0.00011506,2]
[347360764,1735731063655,-500.0,0.00011506,2]
[347360765,1735731063664,-500.0,0.00011506,2]
[347360766,1735731063674,-500.0,0.00011506,2]
[347360767,1735731063684,-500.0,0.00011506,2]
[347360768,1735731063694,-753.93,0.00011506,2]
[347360769,1735731063704,-500.0,0.00011506,2]
[347360770,1735731063713,-500.0,0.00011506,2]
[347360771,1735731063723,-576.78,0.00011506,2]
[347360772,1735731063733,-2020.35,0.00011506,2]
[347360773,1735731063742,-585.65,0.00011506,2]
[347360774,1735731063752,-500.0,0.00011506,2]
[347360775,1735731063762,-2540.33,0.00011506,2]
[347360776,1735731063771,-2974.47,0.00011506,2]
[347360777,1735731063781,-500.0,0.00011506,2]
[347360778,1735731063791,-2731.04,0.00011506,2]
[347360779,1735731063800,-500.0,0.00011506,2]
[347360780,1735731063809,-500.0,0.00011506,2]
[347360781,1735731063819,-500.0,0.00011506,2]
[347360782,1735731063828,-1279.89,0.00011506,2]
[347360783,1735731063837,-688.22,0.00011506,2]
[347360784,1735731063847,-847.97,0.00011506,2]
[347360785,1735731063857,-2081.38,0.00011506,2]
[347360786,1735731063866,-5010.84,0.00011506,2]
[347360787,1735731063877,-500.0,0.00011506,2]
[347360788,1735731063887,-602.76,0.00011506,2]
[347360789,1735731063896,-1300.97,0.00011506,2]
[347360790,1735731063905,-1886.37,0.00011506,2]
[347360791,1735731063915,-500.0,0.00011506,2]
[347360792,1735731063924,-2641.4,0.00011506,2]
[347360793,1735731063934,-2651.28,0.00011506,2]
[347360794,1735731063943,-526.89,0.00011506,2]
[347360795,1735731063952,-500.0,0.00011506,2]
[347360796,1735731063962,-4249.99,0.00011506,2]
[347360797,1735731063971,-746.97,0.00011506,2]
[347360798,1735731063980,-1576.37,0.00011506,2]
[347360799,1735731063989,-2896.6639903,0.00011506,2]
[347360800,1735731064673,-500.0,0.00010958,2]
[347360801,1735731064683,-500.0,0.00011232,2]
[347360802,1735731064693,-150.9,0.00011458,2]
[347360803,1735731064703,-6188.7760097,0.00011506,2]
[347360804,1735731064712,-1024.78,0.00011506,2]
[347360805,1735731064722,-515.37,0.00011506,2]
[347360806,1735731064731,-2089.01,0.00011506,2]
[347360807,1735731064741,-1035.61,0.00011506,2]
[347360808,1735731064750,-661.49,0.00011506,2]
[347360809,1735731064759,-2872.3,0.00011506,2]
[347360810,1735731064769,-1704.07,0.00011506,2]
[347360811,1735731064778,-716.51,0.00011506,2]
[347360812,1735731064788,-867.49,0.00011506,2]
[347360813,1735731064797,-883.06,0.00011506,2]
[347360814,1735731064807,-1699.4,0.00011506,2]
[347360815,1735731064816,-1629.75,0.00011506,2]
[347360816,1735731064826,-500.0,0.00011506,2]
[347360817,1735731064835,-563.99,0.00011506,2]
[347360818,1735731064845,-500.0,0.00011506,2]
[347360819,1735731064854,-500.0,0.00011506,2]
[347360820,1735731064864,-933.89,0.00011506,2]
[347360821,1735731064874,-943.59,0.00011506,2]
[347360822,1735731064883,-2353.01,0.00011506,2]
[347360823,1735731064893,-14116.41,0.00011506,2]
[347360824,1735731064902,-500.0,0.00011506,2]
[347360825,1735731064912,-500.0,0.00011506,2]
[347360826,1735731064921,-2804.82,0.00011506,2]
[347360827,1735731064931,-2681.19,0.00011506,2]
[347360828,1735731064940,-500.0,0.00011506,2]
[347360829,1735731064949,-1131.7,0.00011506,2]
[347360830,1735731064958,-1668.14,0.00011506,2]
[347360831,1735731064968,-626.92,0.00011506,2]
[347360832,1735731064977,-2416.19,0.00011506,2]
[347360833,1735731064987,-860.8,0.00011506,2]
[347360834,1735731064996,-902.88,0.00011506,2]
[347360835,1735731065006,-1098.0,0.00011506,2]
[347360836,1735731065015,-1182.1,0.00011506,2]
[347360837,1735731065024,-3439.19,0.00011506,2]
[347360838,1735731065034,-816.44,0.00011506,2]
[347360839,1735731065043,-500.0,0.00011506,2]
[347360840,1735731065052,-1388.47,0.00011506,2]
[347360841,1735731065061,-1649.8,0.00011506,2]
[347360842,1735731065070,-2700.0,0.00011506,2]
[347360843,1735731065080,-500.0,0.00011506,2]
[347360844,1735731065090,-500.0,0.00011506,2]
[347360845,1735731065099,-1434.77,0.00011506,2]
[347360846,1735731065108,-736.47,0.00011506,2]
[347360847,1735731065117,-458.92312909,0.00011506,2]
[347360848,1735731065127,-2928.76,0.00011506,2]
[347360849,1735731065137,-500.0,0.00011506,2]
[347360850,1735731065147,-500.0,0.00011506,2]
[347360851,1735731065157,-500.0,0.00011506,2]
[347360852,1735731065167,-1560.74,0.00011506,2]
[347360853,1735731065176,-1530.53,0.00011506,2]
[347360854,1735731065186,-1443.69,0.00011506,2]
[347360855,1735731065197,-698.73,0.00011506,2]
[347360856,1735731065207,-558.64,0.00011506,2]
[347360857,1735731065216,-633.02,0.00011506,2]
[347360858,1735731065226,-2152.38,0.00011506,2]
[347360859,1735731065235,-997.69,0.00011506,2]
[347360860,1735731065245,-2042.46,0.00011506,2]
[347360861,1735731065255,-1244.53,0.00011506,2]
[347360862,1735731065264,-1368.21,0.00011506,2]
[347360863,1735731065274,-585.62,0.00011506,2]
[347360864,1735731065283,-933.33,0.00011506,2]
[347360865,1735731065292,-1763.28,0.00011506,2]
[347360866,1735731065302,-1481.07,0.00011506,2]
[347360867,1735731065312,-809.25,0.00011506,2]
[347360868,1735731065321,-570.49,0.00011506,2]
[347360869,1735731065330,-4920.39,0.00011506,2]
[347360870,1735731065339,-500.0,0.00011506,2]
[347360871,1735731065349,-500.0,0.00011506,2]
[347360872,1735731065358,-2179.03,0.00011506,2]
[347360873,1735731065368,-1462.37,0.00011506,2]
[347360874,1735731065378,-1309.06,0.00011506,2]
[347360875,1735731065388,-931.72,0.00011506,2]
[347360876,1735731065397,-500.0,0.00011506,2]
[347360877,1735731065406,-500.0,0.00011506,2]
[347360878,1735731065416,-500.0,0.00011506,2]
[347360879,1735731065426,-520.69,0.00011506,2]
[347360880,1735731065435,-1597.68,0.00011506,2]
[347360881,1735731065444,-1277.11,0.00011506,2]
[347360882,1735731065453,-2683.27,0.00011506,2]
[347360883,1735731065462,-500.0,0.00011506,2]
[347360884,1735731065472,-1018.4,0.00011506,2]
[347360885,1735731065481,-640.79,0.00011506,2]
[347360886,1735731065491,-1189.58,0.00011506,2]
[347360887,1735731065501,-727.68,0.00011506,2]
[347360888,1735731065510,-500.0,0.00011506,2]
[347360889,1735731065520,-3031.61,0.00011506,2]
[347360890,1735731065529,-4693.17,0.00011506,2]
[347360891,1735731065539,-555.61,0.00011506,2]
[347360892,1735731065550,-500.0,0.00011506,2]
[347360893,1735731065561,-500.0,0.00011506,2]
[347360894,1735731065571,-1865.46,0.00011506,2]
[347360895,1735731065582,-1591.85,0.00011506,2]
[347360896,1735731065592,-500.0,0.00011506,2]
[347360897,1735731065602,-959.82,0.00011506,2]
[347360898,1735731065618,-625.79,0.00011506,2]
[347360899,1735731065631,-1705.8,0.00011506,2]
[347360900,1735731065641,-1810.56,0.00011506,2]
[347360901,1735731065654,-500.0,0.00011506,2]
[347360902,1735731065663,-1144.14,0.00011506,2]
[347360903,1735731065674,-167.28780933,0.00011506,2]
[347360904,1735731065685,-2244.74,0.00011506,2]
[347360905,1735731065698,-500.0,0.00011506,2]
[347360906,1735731065708,-500.0,0.00011506,2]
[347360907,1735731065718,-4152.32,0.00011506,2]
[347360908,1735731065728,-500.0,0.00011506,2]
[347360909,1735731065738,-1344.94,0.00011506,2]
[347360910,1735731065747,-1726.36,0.00011506,2]
[347360911,1735731065758,-500.0,0.00011506,2]
[347360912,1735731065768,-1967.49,0.00011506,2]
[347360913,1735731065779,-1188.79,0.00011506,2]
[347360914,1735731065788,-564.63,0.00011506,2]
[347360915,1735731065879,-543.44,0.00011506,2]
[347360916,1735731065889,-500.0,0.00011506,2]
[347360917,1735731065899,-500.0,0.00011506,2]
[347360918,1735731065909,-1334.35,0.00011506,2]
[347360919,1735731065919,-2639.91,0.00011506,2]
[347360920,1735731065929,-4201.24,0.00011506,2]
[347360921,1735731065938,-233.63500452,0.00011506,2]
[347360922,1735731065948,-500.0,0.00011506,2]
[347360923,1735731065957,-569.16,0.00011506,2]
[347360924,1735731065968,-588.35,0.00011506,2]
[347360925,1735731065978,-2917.89,0.00011506,2]
[347360926,1735731065988,-2309.96,0.00011506,2]
[347360927,1735731065998,-500.0,0.00011506,2]
[347360928,1735731066007,-580.64,0.00011506,2]
[347360929,1735731066017,-1139.79,0.00011506,2]
[347360930,1735731066027,-652.93,0.00011506,2]
[347360931,1735731066037,-500.0,0.00011506,2]
[347360932,1735731066047,-1773.03,0.00011506,2]
[347360933,1735731066057,-500.0,0.00011506,2]
[347360934,1735731066068,-2151.51,0.00011506,2]
[347360935,1735731066080,-4959.96,0.00011506,2]
[347360936,1735731066091,-8503.85,0.00011506,2]
[347360937,1735731066100,-1844.55,0.00011506,2]
[347360938,1735731066109,-2786.81,0.00011506,2]
[347360939,1735731066119,-500.0,0.00011506,2]